fUSD/lending_fUSD_20260424
["ID","MTS","AMOUNT","RATE_DAILY","PERIOD"]
[421075352,1776971432806,-225.7,8.398e-05,2]
[421075353,1776971432815,-186.3877268,8.444e-05,2]
[421075354,1776971432824,-1200.0,8.447e-05,2]
[421075355,1776971432834,-270.84,8.448e-05,2]
[421075356,1776971432843,-586.83,8.497e-05,2]
[421075357,1776971432852,-300.0,8.537e-05,2]
[421075358,1776971432861,-300.0,8.537e-05,2]
[421075359,1776971432871,-3318.467,8.539e-05,2]
[421075360,1776971432880,-10430.93820773,8.539e-05,2]
[421075361,1776971432890,-150.0,8.539e-05,2]
[421075362,1776971432899,-5089.7186,8.54e-05,2]
[421075363,1776971432908,-508.1646,8.54e-05,2]
[421075364,1776971432918,-4649.1176,8.54e-05,2]
[421075365,1776971432927,-2500.0,8.54e-05,2]
[421075366,1776971432937,-186.3877268,8.54e-05,2]
[421075367,1776971432946,-396.08,8.554e-05,2]
[421075368,1776971432955,-336.62,8.554e-05,2]
[421075369,1776971432965,-264.05,8.554e-05,2]
[421075370,1776971432975,-237.64,8.554e-05,2]
[421075371,1776971432984,-198.03,8.554e-05,2]
[421075372,1776971432993,-151.0,8.557e-05,2]
[421075373,1776971433003,-178.71,8.56e-05,2]
[421075374,1776971433012,-192.09,8.56e-05,2]
[421075375,1776971433021,-193.07,8.56e-05,2]
[421075376,1776971433030,-151.0,8.594e-05,2]
[421075377,1776971433040,-217.81,8.597e-05,2]
[421075378,1776971433388,-431.67,8.597e-05,2]
[421075379,1776971433397,-218.73,8.597e-05,2]
[421075380,1776971433407,-396.75,8.597e-05,2]
[421075381,1776971433416,-254.63,8.597e-05,2]
[421075382,1776971433426,-369.68,8.597e-05,2]
[421075383,1776971433435,-357.45,8.597e-05,2]
[421075384,1776971433444,-212.19,8.597e-05,2]
[421075385,1776971433454,-223.52,8.597e-05,2]
[421075386,1776971433463,-462.1,8.597e-05,2]
[421075387,1776971433472,-209.17,8.597e-05,2]
[421075388,1776971433482,-169.75,8.597e-05,2]
[421075389,1776971433492,-183.9,8.597e-05,2]
[421075390,1776971433501,-352.07,8.597e-05,2]
[421075391,1776971433511,-162.69,8.597e-05,2]
[421075392,1776971433520,-187.22,8.597e-05,2]
[421075393,1776971433530,-185.36,8.597e-05,2]
[421075394,1776971433540,-160.0,8.597e-05,2]
[421075395,1776971433549,-169.68,8.597e-05,2]
[421075396,1776971433558,-191.56,8.597e-05,2]
[421075397,1776971433567,-167.64,8.597e-05,2]
[421075398,1776971433577,-198.37,8.597e-05,2]
[421075399,1776971433586,-9999.99,8.597e-05,2]
[421075400,1776971433595,-9999.99,8.597e-05,2]
[421075401,1776971433605,-6511.52,8.597e-05,2]
[421075402,1776971433614,-150.99,8.597e-05,2]
[421075403,1776971433623,-24999.99,8.597e-05,2]
[421075404,1776971433633,-168.9,8.597e-05,2]
[421075405,1776971433643,-168.9,8.597e-05,2]
[421075406,1776971433652,-168.9,8.597e-05,2]
[421075407,1776971433662,-168.9,8.597e-05,2]
[421075408,1776971433671,-168.9,8.597e-05,2]
[421075409,1776971433681,-168.9,8.597e-05,2]
[421075410,1776971433691,-168.9,8.597e-05,2]
[421075411,1776971433700,-151.0,8.598e-05,2]
[421075412,1776971433709,-151.0,8.6e-05,2]
[421075413,1776971433719,-200.70865576,8.6e-05,2]
[421075414,1776971433728,-151.0,8.6e-05,2]
[421075415,1776971433737,-474.06531934,8.6e-05,2]
[421075416,1776971433746,-500.0,8.602e-05,2]
[421075417,1776971433756,-500.0,8.602e-05,2]
[421075418,1776971433766,-500.0,8.602e-05,2]
[421075419,1776971433776,-500.0,8.602e-05,2]
[421075420,1776971433786,-500.0,8.602e-05,2]
[421075421,1776971433796,-500.0,8.602e-05,2]
[421075422,1776971433806,-614.21705787,8.602e-05,2]
[421075423,1776971433816,-593.46459394,8.602e-05,2]
[421075424,1776971433826,-500.0,8.602e-05,2]
[421075425,1776971433835,-221.63040804,8.602e-05,2]
[421075426,1776971433845,-775.2585,8.603e-05,2]
[421075427,1776971433855,-7186.21,8.603e-05,2]
[421075428,1776971433865,-316.51,8.603e-05,2]
[421075429,1776971433874,-105677.87,8.603e-05,2]
[421075430,1776971433884,-4167.93,8.603e-05,2]
[421075431,1776971433893,-39485.88,8.603e-05,2]
[421075432,1776971433903,-299.99,8.603e-05,2]
[421075433,1776971433913,-269.0,8.612e-05,2]
[421075434,1776971433924,-337.76757284,8.613e-05,2]
[421075435,1776971433936,-500.0,8.613e-05,2]
[421075436,1776971433946,-500.0,8.613e-05,2]
[421075437,1776971433955,-292.36368211,8.629e-05,2]
[421075438,1776971433965,-151.0,8.637e-05,2]
[421075439,1776971433974,-250.0,8.637e-05,2]
[421075440,1776971433985,-429.19114263,8.639e-05,2]
[421075441,1776971433994,-500.0,8.639e-05,2]
[421075442,1776971434003,-500.0,8.639e-05,2]
[421075443,1776971434013,-500.0,8.639e-05,2]
[421075444,1776971434024,-500.0,8.639e-05,2]
[421075445,1776971434034,-500.0,8.639e-05,2]
[421075446,1776971434044,-500.0,8.639e-05,2]
[421075447,1776971434055,-500.0,8.639e-05,2]
[421075448,1776971434064,-500.0,8.639e-05,2]
[421075449,1776971434073,-384.49613556,8.639e-05,2]
[421075450,1776971434083,-21991.56048715,8.64e-05,2]
[421075451,1776971434096,-4778.95399286,8.64e-05,2]
[421075452,1776971434107,-6774.55256052,8.64e-05,2]
[421075453,1776971434146,-500.0,8.602e-05,2]
[421075454,1776971434156,-311.38375138,8.602e-05,2]
[421075455,1776971434221,-188.61624862,8.602e-05,2]
[421075456,1776971434231,-482.56516255,8.64e-05,2]
[421075457,1776971434246,-2448.0892418,8.64e-05,2]
[421075471,1776971438440,-203.74,8.369e-05,2]
[421075472,1776971438450,-75961.79357054,8.64e-05,2]
[421075473,1776971438463,-48993.48432967,8.64e-05,2]
[421075474,1776971438475,-829.67010334,8.64e-05,2]
[421075475,1776971438487,-7756.7354226,8.64e-05,2]
[421075476,1776971438706,-312.46842503,8.64e-05,2]
[421075487,1776971440958,-176.03,8.597e-05,2]
[421075488,1776971440968,-2950.00999996,8.64e-05,2]
[421075489,1776971441015,-30668.74154793,8.64e-05,2]
[421075490,1776971441027,-1045.19488352,8.64e-05,2]
[421075529,1776971446624,-1194.85013391,8.64e-05,2]
[421075530,1776971446784,-5492.56292886,8.64e-05,2]
[421075531,1776971446879,-500.0,8.019e-05,2]
[421075532,1776971446888,-984.60938579,8.64e-05,2]
[421075533,1776971446900,-1508.949995,8.64e-05,2]
[421075543,1776971453784,152.0,8.689e-05,7]
[421075544,1776971454077,152.0,8.689e-05,7]
[421075545,1776972124947,4311.43348281,7e-05,2]
[421075546,1776972124983,2333.37748605,7e-05,2]
[421075547,1776972125022,577.68718738,7e-05,2]
[421075584,1776972631395,-889.446869,8.178e-05,2]
[421075585,1776972631405,-250.0,8.178e-05,2]
[421075586,1776972631415,-256.0,8.178e-05,2]
[421075587,1776972631425,-280.0,8.219e-05,2]
[421075588,1776972631434,-1200.0,8.329e-05,2]
[421075589,1776972631443,-150.0,8.329e-05,2]
[421075590,1776972631453,-300.0,8.329e-05,2]
[421075591,1776972631462,-273913.53519295,8.33e-05,2]
[421075592,1776972631474,-31684.99123625,8.33e-05,2]
[421075593,1776972631485,-63210.01015599,8.33e-05,2]
[421075594,1776972631498,-994.3940699,8.33e-05,2]
[421075595,1776972631513,-675.39141624,8.33e-05,2]
[421075603,1776972637689,-500.0,8.329e-05,2]
[421075604,1776972637699,-405.30675106,8.329e-05,2]
[421075605,1776972637708,-500.0,8.329e-05,2]
[421075606,1776972637718,-500.0,8.329e-05,2]
[421075607,1776972637728,-300.43379984,8.329e-05,2]
[421075608,1776972637737,-500.0,8.329e-05,2]
[421075609,1776972637746,-194.39710313,8.329e-05,2]
[421075610,1776972637755,-500.0,8.329e-05,2]
[421075611,1776972637765,-500.0,8.329e-05,2]
[421075612,1776972637774,-438.02542589,8.329e-05,2]
[421075613,1776972637784,-500.0,8.329e-05,2]
[421075614,1776972637793,-500.0,8.329e-05,2]
[421075615,1776972637802,-500.0,8.329e-05,2]
[421075616,1776972637812,-500.0,8.329e-05,2]
[421075617,1776972637822,-500.0,8.329e-05,2]
[421075618,1776972637831,-500.0,8.329e-05,2]
[421075619,1776972637841,-500.0,8.329e-05,2]
[421075620,1776972637850,-348.4334017,8.329e-05,2]
[421075621,1776972637860,-500.0,8.329e-05,2]
[421075622,1776972637869,-500.0,8.329e-05,2]
[421075623,1776972637878,-500.0,8.329e-05,2]
[421075624,1776972637888,-500.0,8.329e-05,2]
[421075625,1776972637898,-500.0,8.329e-05,2]
[421075626,1776972637908,-500.0,8.329e-05,2]
[421075627,1776972637918,-500.0,8.329e-05,2]
[421075628,1776972637928,-500.0,8.329e-05,2]
[421075629,1776972637938,-579.23217549,8.329e-05,2]
[421075630,1776972637947,-500.0,8.329e-05,2]
[421075631,1776972637958,-500.0,8.329e-05,2]
[421075632,1776972637968,-500.0,8.329e-05,2]
[421075633,1776972637977,-500.0,8.329e-05,2]
[421075634,1776972637988,-500.0,8.329e-05,2]
[421075635,1776972637998,-621.80092347,8.329e-05,2]
[421075636,1776972638008,-500.0,8.329e-05,2]
[421075637,1776972638018,-528.20131942,8.329e-05,2]
[421075638,1776972638027,-500.0,8.329e-05,2]
[421075639,1776972638037,-500.0,8.329e-05,2]
[421075640,1776972638047,-500.0,8.329e-05,2]
[421075641,1776972638057,-500.0,8.329e-05,2]
[421075642,1776972638068,-500.0,8.329e-05,2]
[421075643,1776972638078,-500.0,8.329e-05,2]
[421075644,1776972638087,-500.0,8.329e-05,2]
[421075645,1776972638096,-500.0,8.329e-05,2]
[421075646,1776972638106,-500.0,8.329e-05,2]
[421075647,1776972638116,-511.57903562,8.329e-05,2]
[421075648,1776972638126,-500.0,8.329e-05,2]
[421075649,1776972638136,-500.0,8.329e-05,2]
[421075650,1776972638146,-500.0,8.329e-05,2]
[421075651,1776972638156,-500.0,8.329e-05,2]
[421075652,1776972638165,-52034.38363492,8.33e-05,2]
[421075737,1776972640141,-25733.06025874,8.33e-05,2]
[421075738,1776972640152,-2529.30522254,8.33e-05,2]
[421075739,1776972640165,-1130.23678436,8.33e-05,2]
[421075740,1776972640176,-607.05961231,8.33e-05,2]
[421075761,1776972646219,-645.75968916,8.33e-05,2]
[421075762,1776972646318,-214550.38770544,8.33e-05,2]
[421075763,1776972646344,-4808.78639373,8.33e-05,2]
[421075764,1776972646359,-4930.54698951,8.33e-05,2]
[421075765,1776972646479,-325812.00533485,8.33e-05,2]
[421075766,1776972646491,-22806.69786856,8.33e-05,2]
[421075767,1776972646592,-5040.85945635,8.33e-05,2]
[421075770,1776972646603,-665.86939559,8.33e-05,2]
[421075787,1776972646760,-346.4546635,8.33e-05,2]
[421075822,1776972724809,152.0,8.352e-05,7]
[421075823,1776973027497,2574.52178692,7e-05,2]
[421075829,1776973624436,9600.0,9e-05,3]
[421075848,1776973831594,-300.0,7.495e-05,2]
[421075849,1776973831604,-1200.0,7.495e-05,2]
[421075850,1776973831614,-300.0,7.495e-05,2]
[421075851,1776973831624,-300.0,7.495e-05,2]
[421075852,1776973831635,-1200.0,7.495e-05,2]
[421075853,1776973831647,-250.0,7.495e-05,2]
[421075854,1776973831657,-150.0,7.496e-05,2]
[421075855,1776973831668,-150.0,7.496e-05,2]
[421075856,1776973831678,-150.0,7.496e-05,2]
[421075857,1776973831689,-150.0,7.496e-05,2]
[421075858,1776973831701,-150.0,7.496e-05,2]
[421075859,1776973831713,-150.0,7.496e-05,2]
[421075860,1776973831724,-150.0,7.496e-05,2]
[421075861,1776973831735,-150.0,7.496e-05,2]
[421075862,1776973831746,-150.0,7.496e-05,2]
[421075863,1776973831759,-150.0,7.555e-05,2]
[421075864,1776973831770,-150.0,7.579e-05,2]
[421075865,1776973831780,-150.0,7.588e-05,2]
[421075866,1776973831791,-150.0,7.6e-05,2]
[421075867,1776973831801,-150.0,7.615e-05,2]
[421075868,1776973831811,-150.0,7.615e-05,2]
[421075869,1776973831821,-150.0,7.662e-05,2]
[421075870,1776973831831,-150.0,7.674e-05,2]
[421075871,1776973831841,-150.0,7.681e-05,2]
[421075872,1776973831851,-150.0,7.704e-05,2]
[421075873,1776973831862,-150.0,7.734e-05,2]
[421075874,1776973831872,-150.0,7.734e-05,2]
[421075875,1776973831883,-150.0,7.746e-05,2]
[421075876,1776973831893,-150.0,7.774e-05,2]
[421075877,1776973831903,-150.0,7.774e-05,2]
[421075878,1776973831914,-150.0,7.793e-05,2]
[421075879,1776973831924,-150.0,7.808e-05,2]
[421075880,1776973831935,-150.0,7.829e-05,2]
[421075881,1776973831945,-150.0,7.853e-05,2]
[421075882,1776973831955,-150.0,7.853e-05,2]
[421075883,1776973831966,-150.0,7.866e-05,2]
[421075884,1776973831977,-3200.0,7.9e-05,2]
[421075885,1776973831987,-150.0,7.912e-05,2]
[421075886,1776973831997,-150.0,7.912e-05,2]
[421075887,1776973832007,-150.0,7.912e-05,2]
[421075888,1776973832018,-150.0,7.912e-05,2]
[421075890,1776973832028,-150.0,7.912e-05,2]
[421075892,1776973832039,-150.0,7.912e-05,2]
[421075894,1776973832049,-150.0,7.959e-05,2]
[421075896,1776973832059,-150.0,7.972e-05,2]
[421075897,1776973832069,-150.0,7.972e-05,2]
[421075898,1776973832079,-150.0,7.996e-05,2]
[421075899,1776973832090,-6400.0,8e-05,2]
[421075900,1776973832101,-150.0,8e-05,2]
[421075901,1776973832112,-150.0,8.016e-05,2]
[421075902,1776973832123,-150.0,8.031e-05,2]
[421075903,1776973832133,-150.0,8.051e-05,2]
[421075904,1776973832144,-150.0,8.051e-05,2]
[421075905,1776973832154,-150.0,8.079e-05,2]
[421075906,1776973832169,-203.74,8.081e-05,2]
[421075907,1776973832184,-150.0,8.091e-05,2]
[421075908,1776973832196,-150.0,8.091e-05,2]
[421075909,1776973832206,-155.0,8.117e-05,2]
[421075910,1776973832217,-250.0,8.118e-05,2]
[421075911,1776973832228,-382.29122587,8.118e-05,2]
[421075912,1776973832238,-509.3601258,8.118e-05,2]
[421075913,1776973832249,-500.0,8.118e-05,2]
[421075914,1776973832260,-500.0,8.118e-05,2]
[421075915,1776973832270,-500.0,8.118e-05,2]
[421075916,1776973832280,-500.0,8.118e-05,2]
[421075917,1776973832290,-500.0,8.118e-05,2]
[421075918,1776973832301,-500.0,8.118e-05,2]
[421075919,1776973832314,-369.29187978,8.118e-05,2]
[421075920,1776973832328,-500.0,8.118e-05,2]
[421075921,1776973832339,-500.0,8.118e-05,2]
[421075922,1776973832349,-500.0,8.118e-05,2]
[421075923,1776973832360,-500.0,8.118e-05,2]
[421075924,1776973832370,-235.75565816,8.118e-05,2]
[421075925,1776973832381,-229.80933738,8.118e-05,2]
[421075926,1776973832391,-280.91125771,8.118e-05,2]
[421075927,1776973832401,-500.0,8.118e-05,2]
[421075928,1776973832411,-500.0,8.118e-05,2]
[421075929,1776973832421,-175.47024172,8.118e-05,2]
[421075930,1776973832432,-500.0,8.118e-05,2]
[421075931,1776973832442,-500.0,8.118e-05,2]
[421075932,1776973832453,-500.0,8.118e-05,2]
[421075933,1776973832464,-500.0,8.118e-05,2]
[421075934,1776973832475,-500.0,8.118e-05,2]
[421075935,1776973832486,-500.0,8.118e-05,2]
[421075936,1776973832497,-500.0,8.118e-05,2]
[421075937,1776973832508,-500.0,8.118e-05,2]
[421075938,1776973832518,-500.0,8.118e-05,2]
[421075939,1776973832530,-500.0,8.118e-05,2]
[421075940,1776973832541,-500.0,8.118e-05,2]
[421075941,1776973832553,-500.0,8.118e-05,2]
[421075942,1776973832564,-500.0,8.118e-05,2]
[421075943,1776973832574,-500.0,8.118e-05,2]
[421075944,1776973832584,-500.0,8.118e-05,2]
[421075945,1776973832595,-500.0,8.118e-05,2]
[421075946,1776973832606,-500.0,8.118e-05,2]
[421075947,1776973832617,-500.0,8.118e-05,2]
[421075948,1776973832628,-500.0,8.118e-05,2]
[421075949,1776973832638,-500.0,8.118e-05,2]
[421075950,1776973832649,-500.0,8.118e-05,2]
[421075951,1776973832660,-500.0,8.118e-05,2]
[421075952,1776973832670,-500.0,8.118e-05,2]
[421075953,1776973832681,-500.0,8.118e-05,2]
[421075954,1776973832692,-500.0,8.118e-05,2]
[421075955,1776973832703,-500.0,8.118e-05,2]
[421075956,1776973832715,-300.0,8.118e-05,2]
[421075957,1776973832726,-500.0,8.118e-05,2]
[421075958,1776973832739,-500.0,8.118e-05,2]
[421075959,1776973832751,-604.12034342,8.118e-05,2]
[421075960,1776973832764,-604.12034342,8.118e-05,2]
[421075961,1776973832775,-604.12034342,8.118e-05,2]
[421075962,1776973832787,-604.12034342,8.118e-05,2]
[421075963,1776973832798,-604.12034342,8.118e-05,2]
[421075964,1776973832810,-604.12034342,8.118e-05,2]
[421075965,1776973832822,-604.12034342,8.118e-05,2]
[421075966,1776973832833,-604.12034342,8.118e-05,2]
[421075967,1776973832843,-604.12034342,8.118e-05,2]
[421075968,1776973832854,-604.12034342,8.118e-05,2]
[421075969,1776973832866,-604.12034342,8.118e-05,2]
[421075970,1776973832877,-604.12034342,8.118e-05,2]
[421075971,1776973832889,-604.12034342,8.118e-05,2]
[421075972,1776973832901,-604.12034342,8.118e-05,2]
[421075973,1776973832912,-604.12034342,8.118e-05,2]
[421075974,1776973832923,-604.12034342,8.118e-05,2]
[421075975,1776973832933,-604.12034342,8.118e-05,2]
[421075976,1776973832943,-604.12034342,8.118e-05,2]
[421075977,1776973832955,-604.12034342,8.118e-05,2]
[421075978,1776973832965,-604.12034342,8.118e-05,2]
[421075979,1776973832976,-604.12034342,8.118e-05,2]
[421075980,1776973832986,-604.12034342,8.118e-05,2]
[421075981,1776973832997,-604.12034342,8.118e-05,2]
[421075982,1776973833008,-604.12034342,8.118e-05,2]
[421075983,1776973833018,-604.12034342,8.118e-05,2]
[421075984,1776973833029,-604.12034342,8.118e-05,2]
[421075985,1776973833040,-604.12034342,8.118e-05,2]
[421075986,1776973833051,-604.12034342,8.118e-05,2]
[421075987,1776973833061,-604.12034342,8.118e-05,2]
[421075988,1776973833072,-604.12034342,8.118e-05,2]
[421075989,1776973833082,-604.12034342,8.118e-05,2]
[421075990,1776973833092,-604.12034342,8.118e-05,2]
[421075991,1776973833102,-604.12034342,8.118e-05,2]
[421075992,1776973833113,-604.12034342,8.118e-05,2]
[421075993,1776973833126,-604.12034342,8.118e-05,2]
[421075994,1776973833136,-604.12034342,8.118e-05,2]
[421075995,1776973833146,-604.12034342,8.118e-05,2]
[421075996,1776973833156,-604.12034342,8.118e-05,2]
[421075997,1776973833167,-604.12034342,8.118e-05,2]
[421075998,1776973833177,-604.12034342,8.118e-05,2]
[421075999,1776973833187,-604.12034342,8.118e-05,2]
[421076000,1776973833198,-604.12034342,8.118e-05,2]
[421076001,1776973833209,-604.12034342,8.118e-05,2]
[421076002,1776973833219,-604.12034342,8.118e-05,2]
[421076003,1776973833229,-581.46583054,8.118e-05,2]
[421076004,1776973833240,-581.46583054,8.118e-05,2]
[421076005,1776973833250,-581.46583054,8.118e-05,2]
[421076006,1776973833260,-581.46583054,8.118e-05,2]
[421076007,1776973833271,-581.46583054,8.118e-05,2]
[421076008,1776973833281,-581.46583054,8.118e-05,2]
[421076009,1776973833292,-581.46583054,8.118e-05,2]
[421076010,1776973833303,-581.46583054,8.118e-05,2]
[421076011,1776973833313,-581.46583054,8.118e-05,2]
[421076012,1776973833324,-581.46583054,8.118e-05,2]
[421076013,1776973833334,-581.46583054,8.118e-05,2]
[421076014,1776973833345,-581.46583054,8.118e-05,2]
[421076015,1776973833355,-581.46583054,8.118e-05,2]
[421076016,1776973833365,-581.46583054,8.118e-05,2]
[421076017,1776973833375,-581.46583054,8.118e-05,2]
[421076018,1776973833385,-581.46583047,8.118e-05,2]
[421076019,1776973833394,-159777.21297837,8.119e-05,2]
[421076020,1776973833408,-63288.02402332,8.119e-05,2]
[421076021,1776973833419,-121313.46027492,8.119e-05,2]
[421076022,1776973833430,-1254.41808677,8.119e-05,2]
[421076023,1776973833441,-1110.61079819,8.119e-05,2]
[421076024,1776973833452,-620.42829203,8.119e-05,2]
[421076025,1776973833470,-402.11590291,8.119e-05,2]
[421076026,1776973833482,-1039.55708434,8.119e-05,2]
[421076028,1776973837892,-492.89100048,8.119e-05,2]
[421076029,1776973837907,-60076.28671484,8.119e-05,2]
[421076030,1776973837919,-48993.48432967,8.119e-05,2]
[421076031,1776973837931,-829.67010334,8.119e-05,2]
[421076032,1776973838008,-764.8018764,8.119e-05,2]
[421076033,1776973838024,-1852.927,8.119e-05,2]
[421076034,1776973838036,-324.12545094,8.119e-05,2]
[421076035,1776973838048,-1250.51494751,8.119e-05,2]
[421076036,1776973838060,-383.08942024,8.119e-05,2]
[421076037,1776973838071,-2193.9605744,8.119e-05,2]
[421076038,1776973838116,-530693.29093088,8.119e-05,2]
[421076039,1776973838170,-4911.37788427,8.119e-05,2]
[421076040,1776973838182,-1650.61375639,8.119e-05,2]
[421076049,1776973839854,-15369.5095275,8.119e-05,2]
[421076050,1776973839866,-32508.88239924,8.119e-05,2]
[421076051,1776973839877,-2095.592,8.119e-05,2]
[421076052,1776973840547,-179162.57576895,8.119e-05,2]
[421076053,1776973840562,-387.67125643,8.119e-05,2]
[421076054,1776973840577,-774.6985844,8.119e-05,2]
[421076067,1776973845744,-1959.29828611,8.119e-05,2]
[421076068,1776973845796,-4787.2944692,8.119e-05,2]
[421076069,1776973845851,-307.619235,8.119e-05,2]
[421076070,1776973846169,-68525.97040653,8.119e-05,2]
[421076071,1776973846276,-185859.93703643,8.119e-05,2]
[421076072,1776973846286,-256.0,8.119e-05,2]
[421076073,1776973846296,-150.0,8.121e-05,2]
[421076074,1776973846307,-34020.6453,8.122e-05,2]
[421076075,1776973846317,-6784.8642,8.122e-05,2]
[421076076,1776973846327,-150.0,8.144e-05,2]
[421076077,1776973846337,-150.0,8.15e-05,2]
[421076078,1776973846350,-150.0,8.162e-05,2]
[421076079,1776973846360,-267.7111149,8.193e-05,2]
[421076080,1776973846369,-500.0,8.193e-05,2]
[421076081,1776973846379,-515.47771978,8.193e-05,2]
[421076083,1776973846388,-500.0,8.193e-05,2]
[421076085,1776973846398,-500.0,8.193e-05,2]
[421076087,1776973846407,-500.0,8.193e-05,2]
[421076089,1776973846417,-184.84,8.2e-05,2]
[421076091,1776973846426,-150.0,8.21e-05,2]
[421076093,1776973846435,-150.0,8.21e-05,2]
[421076095,1776973846446,-4286.889,8.218e-05,2]
[421076097,1776973846455,-356.087,8.218e-05,2]
[421076098,1776973846464,-209.06848544,8.219e-05,2]
[421076099,1776973846474,-492.68,8.219e-05,2]
[421076100,1776973846483,-500.0,8.219e-05,2]
[421076101,1776973846493,-500.0,8.219e-05,2]
[421076102,1776973846503,-500.0,8.219e-05,2]
[421076103,1776973846513,-500.0,8.219e-05,2]
[421076104,1776973846523,-500.0,8.219e-05,2]
[421076105,1776973846532,-503.11569839,8.219e-05,2]
[421076106,1776973846542,-500.0,8.219e-05,2]
[421076107,1776973846552,-500.0,8.219e-05,2]
[421076108,1776973846561,-500.0,8.219e-05,2]
[421076109,1776973846571,-166.72275916,8.219e-05,2]
[421076111,1776973846580,-500.0,8.219e-05,2]
[421076112,1776973846590,-500.0,8.219e-05,2]
[421076113,1776973846599,-500.0,8.219e-05,2]
[421076114,1776973846608,-500.0,8.219e-05,2]
[421076116,1776973846618,-548.0,8.219e-05,2]
[421076118,1776973846627,-548.0,8.219e-05,2]
[421076119,1776973846637,-548.0,8.219e-05,2]
[421076121,1776973846646,-548.0,8.219e-05,2]
[421076122,1776973846656,-548.0,8.219e-05,2]
[421076123,1776973846665,-548.0,8.219e-05,2]
[421076124,1776973846675,-548.0,8.219e-05,2]
[421076125,1776973846684,-548.0,8.219e-05,2]
[421076126,1776973846694,-548.0,8.219e-05,2]
[421076127,1776973846703,-548.0,8.219e-05,2]
[421076128,1776973846713,-548.0,8.219e-05,2]
[421076129,1776973846722,-548.0,8.219e-05,2]
[421076130,1776973846731,-548.0,8.219e-05,2]
[421076131,1776973846741,-548.0,8.219e-05,2]
[421076132,1776973846750,-548.0,8.219e-05,2]
[421076133,1776973846760,-548.0,8.219e-05,2]
[421076135,1776973846769,-548.0,8.219e-05,2]
[421076137,1776973846779,-548.0,8.219e-05,2]
[421076139,1776973846788,-548.0,8.219e-05,2]
[421076140,1776973846807,-548.0,8.219e-05,2]
[421076141,1776973846818,-548.0,8.219e-05,2]
[421076142,1776973846827,-548.0,8.219e-05,2]
[421076143,1776973846837,-548.0,8.219e-05,2]
[421076144,1776973846847,-548.41903347,8.219e-05,2]
[421076145,1776973846856,-150.0,8.219e-05,2]
[421076146,1776973846866,-150.0,8.219e-05,2]
[421076147,1776973846876,-150.0,8.219e-05,2]
[421076148,1776973846885,-749.0,8.219e-05,2]
[421076149,1776973846895,-749.0,8.219e-05,2]
[421076150,1776973846905,-150.0,8.219e-05,2]
[421076151,1776973846914,-159.46866437,8.219e-05,2]
[421076152,1776973846924,-749.0,8.219e-05,2]
[421076153,1776973846934,-749.0,8.219e-05,2]
[421076154,1776973846944,-749.0,8.219e-05,2]
[421076155,1776973846954,-154.26844781,8.219e-05,2]
[421076156,1776973846963,-749.0,8.219e-05,2]
[421076157,1776973846973,-749.0,8.219e-05,2]
[421076158,1776973846983,-500.0,8.219e-05,2]
[421076159,1776973846993,-749.0,8.219e-05,2]
[421076160,1776973847002,-500.0,8.219e-05,2]
[421076161,1776973847012,-749.0,8.219e-05,2]
[421076162,1776973847021,-749.0,8.219e-05,2]
[421076163,1776973847031,-500.0,8.219e-05,2]
[421076164,1776973847041,-749.0,8.219e-05,2]
[421076165,1776973847050,-500.0,8.219e-05,2]
[421076166,1776973847060,-500.0,8.219e-05,2]
[421076167,1776973847070,-749.0,8.219e-05,2]
[421076168,1776973847080,-500.0,8.219e-05,2]
[421076169,1776973847091,-500.0,8.219e-05,2]
[421076170,1776973847101,-749.0,8.219e-05,2]
[421076171,1776973847112,-500.0,8.219e-05,2]
[421076172,1776973847121,-500.0,8.219e-05,2]
[421076173,1776973847131,-500.0,8.219e-05,2]
[421076174,1776973847141,-749.0,8.219e-05,2]
[421076175,1776973847151,-500.0,8.219e-05,2]
[421076176,1776973847161,-500.0,8.219e-05,2]
[421076177,1776973847170,-500.0,8.219e-05,2]
[421076178,1776973847180,-749.0,8.219e-05,2]
[421076179,1776973847190,-500.0,8.219e-05,2]
[421076180,1776973847199,-500.0,8.219e-05,2]
[421076181,1776973847213,-500.0,8.219e-05,2]
[421076182,1776973847223,-749.0,8.219e-05,2]
[421076183,1776973847233,-500.0,8.219e-05,2]